Workbook

Sheet Taul1
E1: Tehdään makroja | O1: Tiedostossa on malliksi nämä makrot
D2: 1 | E2: Makro valitsee taulukon kaikki luvut muotoilua varten
D3: 2 | E3: Makro valitsee taulukon kaikki kaavat muotoilua varten
D4: 3 | E4: Makro valitsee taulukon kaikki tekstit muotoilua varten
AA9: uusi hinta % | AC9: 0.9
A14: Tuote | B14: Vanha hinta | C14: Alen-nettu hinta | E14: Tuote | F14: Vanha hinta | G14: Alen-nettu hinta | I14: Tuote | J14: Vanha hinta | K14: Alen-nettu hinta | M14: Tuote | N14: Vanha hinta | O14: Alen-nettu hinta | Q14: Tuote | R14: Vanha hinta | S14: Alen-nettu hinta | U14: Tuote | V14: Vanha hinta | W14: Alen-nettu hinta | Y14: Tuote | Z14: Vanha hinta | AA14: Alen-nettu hinta
A15: K10001 | B15: 10 | C15: =B15*$AC$9 -> 9 | E15: K10023 | F15: 230 | G15: =F15*$AC$9 -> 207 | I15: K10043 | J15: 430 | K15: =J15*$AC$9 -> 387 | M15: K10064 | N15: 640 | O15: =N15*$AC$9 -> 576 | Q15: K10083 | R15: 830 | S15: =R15*$AC$9 -> 747 | U15: K10106 | V15: 1060 | W15: =V15*$AC$9 -> 954 | Y15: K10129 | Z15: 1290 | AA15: =Z15*$AC$9 -> 1161
A16: K10002 | B16: 20 | C16: 18 | E16: K10024 | F16: 240 | G16: 216 | I16: K10044 | J16: 440 | K16: 396 | M16: K10065 | N16: 650 | O16: 585 | Q16: K10084 | R16: 840 | S16: 756 | U16: K10107 | V16: 1070 | W16: 963 | Y16: K10130 | Z16: 1300 | AA16: 1170
A17: K10003 | B17: 30 | C17: 27 | E17: K10025 | F17: 250 | G17: 225 | I17: K10045 | J17: 450 | K17: 405 | M17: K10066 | N17: 660 | O17: 594 | Q17: K10085 | R17: 850 | S17: 765 | U17: K10108 | V17: 1080 | W17: 972 | Y17: K10131 | Z17: 1310 | AA17: 1179
A18: K10004 | B18: 40 | C18: 36 | E18: K10026 | F18: 260 | G18: 234 | I18: K10046 | J18: 460 | K18: 414 | M18: K10067 | N18: 670 | O18: 603 | Q18: K10086 | R18: 860 | S18: 774 | U18: K10109 | V18: 1090 | W18: 981 | Y18: K10132 | Z18: 1320 | AA18: 1188
A19: K10005 | B19: 50 | C19: 45 | E19: K10027 | F19: 270 | G19: 243 | I19: K10047 | J19: 470 | K19: 423 | M19: K10068 | N19: 680 | O19: 612 | Q19: K10087 | R19: 870 | S19: 783 | U19: K10110 | V19: 1100 | W19: 990 | Y19: K10133 | Z19: 1330 | AA19: 1197
A20: K10006 | B20: 60 | C20: 54 | E20: K10028 | F20: 280 | G20: 252 | I20: K10048 | J20: 480 | K20: 432 | M20: K10069 | N20: 690 | O20: 621 | Q20: K10088 | R20: 880 | S20: 792 | U20: K10111 | V20: 1110 | W20: 999 | Y20: K10134 | Z20: 1340 | AA20: 1206
A21: K10007 | B21: 70 | C21: 63 | E21: K10029 | F21: 290 | G21: 261 | I21: K10049 | J21: 490 | K21: 441 | M21: K10070 | N21: 700 | O21: 630 | Q21: K10089 | R21: 890 | S21: 801 | U21: K10112 | V21: 1120 | W21: 1008 | Y21: K10135 | Z21: 1350 | AA21: 1215
A22: K10008 | B22: 80 | C22: 72 | E22: K10030 | F22: 300 | G22: 270 | I22: K10050 | J22: 500 | K22: 450 | M22: K10071 | N22: 710 | O22: 639 | Q22: K10090 | R22: 900 | S22: 810 | U22: K10113 | V22: 1130 | W22: 1017 | Y22: K10136 | Z22: 1360 | AA22: 1224
A23: K10009 | B23: 90 | C23: 81 | E23: K10031 | F23: 310 | G23: 279 | I23: K10051 | J23: 510 | K23: 459 | M23: K10072 | N23: 720 | O23: 648 | Q23: K10091 | R23: 910 | S23: 819 | U23: K10114 | V23: 1140 | W23: 1026 | Y23: K10137 | Z23: 1370 | AA23: 1233
A24: K10010 | B24: 100 | C24: 90 | E24: K10032 | F24: 320 | G24: 288 | I24: K10052 | J24: 520 | K24: 468 | M24: K10073 | N24: 730 | O24: 657 | Q24: K10092 | R24: 920 | S24: 828 | U24: K10115 | V24: 1150 | W24: 1035 | Y24: K10138 | Z24: 1380 | AA24: 1242
A25: K10011 | B25: 110 | C25: 99 | E25: K10033 | F25: 330 | G25: 297 | I25: K10053 | J25: 530 | K25: 477 | M25: K10074 | N25: 740 | O25: 666 | Q25: K10093 | R25: 930 | S25: 837 | U25: K10116 | V25: 1160 | W25: 1044 | Y25: K10139 | Z25: 1390 | AA25: 1251
A26: K10012 | B26: 120 | C26: 108 | E26: K10034 | F26: 340 | G26: 306 | I26: K10054 | J26: 540 | K26: 486 | M26: K10075 | N26: 750 | O26: 675 | Q26: K10094 | R26: 940 | S26: 846 | U26: K10117 | V26: 1170 | W26: 1053 | Y26: K10140 | Z26: 1400 | AA26: 1260
A27: K10013 | B27: 130 | C27: 117 | E27: K10035 | F27: 350 | G27: 315 | I27: K10055 | J27: 550 | K27: 495 | M27: K10076 | N27: 760 | O27: 684 | Q27: K10095 | R27: 950 | S27: 855 | U27: K10118 | V27: 1180 | W27: 1062 | Y27: K10141 | Z27: 1410 | AA27: 1269
A28: K10014 | B28: 140 | C28: 126 | E28: K10036 | F28: 360 | G28: 324 | I28: K10056 | J28: 560 | K28: 504 | M28: K10077 | N28: 770 | O28: 693 | Q28: K10096 | R28: 960 | S28: 864 | U28: K10119 | V28: 1190 | W28: 1071 | Y28: K10142 | Z28: 1420 | AA28: 1278
A29: K10015 | B29: 150 | C29: 135 | E29: K10037 | F29: 370 | G29: 333 | I29: K10057 | J29: 570 | K29: 513 | M29: K10078 | N29: 780 | O29: 702 | Q29: K10097 | R29: 970 | S29: 873 | U29: K10120 | V29: 1200 | W29: 1080 | Y29: K10143 | Z29: 1430 | AA29: 1287
A30: K10016 | B30: 160 | C30: 144 | E30: K10038 | F30: 380 | G30: 342 | I30: K10058 | J30: 580 | K30: 522 | M30: K10079 | N30: 790 | O30: 711 | Q30: K10098 | R30: 980 | S30: 882 | U30: K10121 | V30: 1210 | W30: 1089 | Y30: K10144 | Z30: 1440 | AA30: 1296
A31: K10017 | B31: 170 | C31: 153 | E31: K10039 | F31: 390 | G31: 351 | I31: K10059 | J31: 590 | K31: 531 | M31: K10080 | N31: 800 | O31: 720 | Q31: K10099 | R31: 990 | S31: 891 | U31: K10122 | V31: 1220 | W31: 1098 | Y31: K10145 | Z31: 1450 | AA31: 1305
A32: K10018 | B32: 180 | C32: 162 | E32: K10040 | F32: 400 | G32: 360 | I32: K10060 | J32: 600 | K32: 540 | M32: K10081 | N32: 810 | O32: 729 | Q32: K10100 | R32: 1000 | S32: 900 | U32: K10123 | V32: 1230 | W32: 1107 | Y32: K10146 | Z32: 1460 | AA32: 1314
A33: K10019 | B33: 190 | C33: 171 | E33: K10041 | F33: 410 | G33: 369 | I33: K10061 | J33: 610 | K33: 549 | M33: K10082 | N33: 820 | O33: 738 | Q33: K10101 | R33: 1010 | S33: 909 | U33: K10124 | V33: 1240 | W33: 1116 | Y33: K10147 | Z33: 1470 | AA33: 1323
A34: K10020 | B34: 200 | C34: 180 | E34: K10042 | F34: 420 | G34: 378 | I34: K10062 | J34: 620 | K34: 558 | M34: K10083 | N34: 821 | O34: =N34*$AC$9 -> 738.9 | Q34: K10102 | R34: 1020 | S34: 918 | U34: K10125 | V34: 1250 | W34: 1125 | Y34: K10148 | Z34: 1480 | AA34: 1332
A35: K10021 | B35: 210 | C35: 189 | E35: K10043 | F35: 430 | G35: =F35*$AC$9 -> 387 | I35: K10063 | J35: 630 | K35: 567 | M35: K10084 | N35: 822 | O35: 739.8 | Q35: K10103 | R35: 1030 | S35: 927 | U35: K10126 | V35: 1260 | W35: 1134 | Y35: K10149 | Z35: 1490 | AA35: 1341
A36: K10022 | B36: 220 | C36: 198 | E36: K10044 | F36: 440 | G36: 396 | I36: K10064 | J36: 640 | K36: =J36*$AC$9 -> 576 | M36: K10085 | N36: 823 | O36: 740.7 | Q36: K10104 | R36: 1040 | S36: 936 | U36: K10127 | V36: 1270 | W36: 1143 | Y36: K10150 | Z36: 1500 | AA36: 1350
A37: K10023 | B37: 230 | C37: =B37*$AC$9 -> 207 | E37: K10045 | F37: 450 | G37: 405 | I37: K10065 | J37: 650 | K37: 585 | M37: K10086 | N37: 824 | O37: 741.6 | Q37: K10105 | R37: 1050 | S37: 945 | U37: K10128 | V37: 1280 | W37: 1152 | Y37: K10151 | Z37: 1510 | AA37: 1359
A38: K10024 | B38: 240 | C38: 216 | E38: K10046 | F38: 460 | G38: 414 | I38: K10066 | J38: 660 | K38: 594 | M38: K10087 | N38: 825 | O38: 742.5 | Q38: K10106 | R38: 1051 | S38: =R38*$AC$9 -> 945.9 | U38: K10129 | V38: 1281 | W38: =V38*$AC$9 -> 1152.9 | Y38: K10152 | Z38: 1511 | AA38: =Z38*$AC$9 -> 1359.9
A39: K10025 | B39: 250 | C39: 225 | E39: K10047 | F39: 470 | G39: 423 | I39: K10067 | J39: 670 | K39: 603 | M39: K10088 | N39: 826 | O39: 743.4 | Q39: K10107 | R39: 1052 | S39: 946.8 | U39: K10130 | V39: 1282 | W39: 1153.8 | Y39: K10153 | Z39: 1512 | AA39: 1360.8
A40: K10026 | B40: 260 | C40: 234 | E40: K10048 | F40: 480 | G40: 432 | I40: K10068 | J40: 680 | K40: 612 | M40: K10089 | N40: 827 | O40: 744.3 | Q40: K10108 | R40: 1053 | S40: 947.7 | U40: K10131 | V40: 1283 | W40: 1154.7 | Y40: K10154 | Z40: 1513 | AA40: 1361.7
A149: K10135 | B149: 1350
A150: K10136 | B150: 1360
A151: K10137 | B151: 1370
A152: K10138 | B152: 1380
A153: K10139 | B153: 1390
A154: K10140 | B154: 1400
A155: K10141 | B155: 1410
A156: K10142 | B156: 1420
A157: K10143 | B157: 1430
A158: K10144 | B158: 1440
A159: K10145 | B159: 1450
A160: K10146 | B160: 1460
A161: K10147 | B161: 1470
A162: K10148 | B162: 1480
A163: K10149 | B163: 1490
A164: K10150 | B164: 1500
A165: K10151 | B165: 1510
A166: K10152 | B166: 1520
A167: K10153 | B167: 1530
A168: K10154 | B168: 1540
A169: K10155 | B169: 1550
A170: K10156 | B170: 1560
A171: K10157 | B171: 1570
A172: K10158 | B172: 1580
A173: K10159 | B173: 1590
A174: K10160 | B174: 1600
A175: K10161 | B175: 1610
A176: K10162 | B176: 1620
A177: K10163 | B177: 1630
A178: K10164 | B178: 1640
A179: K10165 | B179: 1650
A180: K10166 | B180: 1660
A181: K10167 | B181: 1670
A182: K10168 | B182: 1680
A183: K10169 | B183: 1690
A184: K10170 | B184: 1700
A185: K10171 | B185: 1710
A186: K10172 | B186: 1720
A187: K10173 | B187: 1730
A188: K10174 | B188: 1740
A189: K10175 | B189: 1750
A190: K10176 | B190: 1760
A191: K10177 | B191: 1770
A192: K10178 | B192: 1780
A193: K10179 | B193: 1790
A194: K10180 | B194: 1800
A195: K10181 | B195: 1810
A196: K10182 | B196: 1820
A197: K10183 | B197: 1830
A198: K10184 | B198: 1840
A199: K10185 | B199: 1850
A200: K10186 | B200: 1860
A201: K10187 | B201: 1870
A202: K10188 | B202: 1880
A203: K10189 | B203: 1890
A204: K10190 | B204: 1900
A205: K10191 | B205: 1910
A206: K10192 | B206: 1920
A207: K10193 | B207: 1930
A208: K10194 | B208: 1940
A209: K10195 | B209: 1950
A210: K10196 | B210: 1960
A211: K10197 | B211: 1970
A212: K10198 | B212: 1980
A213: K10199 | B213: 1990
A214: K10200 | B214: 2000
A215: K10201 | B215: 2010
A216: K10202 | B216: 2020
A217: K10203 | B217: 2030
A218: K10204 | B218: 2040
A219: K10205 | B219: 2050
A220: K10206 | B220: 2060
A221: K10207 | B221: 2070
A222: K10208 | B222: 2080
A223: K10209 | B223: 2090
A224: K10210 | B224: 2100
A225: K10211 | B225: 2110
A226: K10212 | B226: 2120
A227: K10213 | B227: 2130
A228: K10214 | B228: 2140
A229: K10215 | B229: 2150
A230: K10216 | B230: 2160
A231: K10217 | B231: 2170
A232: K10218 | B232: 2180
A233: K10219 | B233: 2190
A234: K10220 | B234: 2200
A235: K10221 | B235: 2210
A236: K10222 | B236: 2220
A237: K10223 | B237: 2230
A238: K10224 | B238: 2240
A239: K10225 | B239: 2250
A240: K10226 | B240: 2260
A241: K10227 | B241: 2270
A242: K10228 | B242: 2280
A243: K10229 | B243: 2290
A244: K10230 | B244: 2300
A245: K10231 | B245: 2310
A246: K10232 | B246: 2320
A247: K10233 | B247: 2330
A248: K10234 | B248: 2340
A249: K10235 | B249: 2350
A250: K10236 | B250: 2360
A251: K10237 | B251: 2370
A252: K10238 | B252: 2380
A253: K10239 | B253: 2390
A254: K10240 | B254: 2400
A255: K10241 | B255: 2410
A256: K10242 | B256: 2420
A257: K10243 | B257: 2430
A258: K10244 | B258: 2440
A259: K10245 | B259: 2450
A260: K10246 | B260: 2460
A261: K10247 | B261: 2470
A262: K10248 | B262: 2480
A263: K10249 | B263: 2490
A264: K10250 | B264: 2500
A265: K10251 | B265: 2510
A266: K10252 | B266: 2520
A267: K10253 | B267: 2530
A268: K10254 | B268: 2540
A269: K10255 | B269: 2550
A270: K10256 | B270: 2560
A271: K10257 | B271: 2570
A272: K10258 | B272: 2580
A273: K10259 | B273: 2590
A274: K10260 | B274: 2600
A275: K10261 | B275: 2610
A276: K10262 | B276: 2620
A277: K10263 | B277: 2630
A278: K10264 | B278: 2640
A279: K10265 | B279: 2650
A280: K10266 | B280: 2660
A281: K10267 | B281: 2670
A282: K10268 | B282: 2680
A283: K10269 | B283: 2690
A284: K10270 | B284: 2700
A285: K10271 | B285: 2710
A286: K10272 | B286: 2720
A287: K10273 | B287: 2730
A288: K10274 | B288: 2740
A289: K10275 | B289: 2750
A290: K10276 | B290: 2760
A291: K10277 | B291: 2770
A292: K10278 | B292: 2780
A293: K10279 | B293: 2790
A294: K10280 | B294: 2800
A295: K10281 | B295: 2810
A296: K10282 | B296: 2820
A297: K10283 | B297: 2830
A298: K10284 | B298: 2840
A299: K10285 | B299: 2850
A300: K10286 | B300: 2860
A301: K10287 | B301: 2870
A302: K10288 | B302: 2880
A303: K10289 | B303: 2890
A304: K10290 | B304: 2900
A305: K10291 | B305: 2910
A306: K10292 | B306: 2920
A307: K10293 | B307: 2930
A308: K10294 | B308: 2940
A309: K10295 | B309: 2950
A310: K10296 | B310: 2960
A311: K10297 | B311: 2970
A312: K10298 | B312: 2980
A313: K10299 | B313: 2990
A314: K10300 | B314: 3000
A315: K10301 | B315: 3010
A316: K10302 | B316: 3020
... 719 more rows
